bitfinex/quotes_ETHUSD_20240810
["timestamp","ask_amount","ask_price","bid_price","bid_amount"]
[1723283029685,1.89413,2639.8,2639.7,2.497]
[1723283030060,1.89413,2639.8,2639.7,2.57258877]
[1723283030268,1.89382,2640.2,2639.7,2.57258877]
[1723283030587,1.89382,2640.2,2639.8,2.497]
[1723283030794,3.78767,2640.2,2639.8,3.05658088]
[1723283031002,3.78767,2640.2,2639.9,0.07550043]
[1723283031164,1.89382,2640.2,2639.9,0.07550043]
[1723283031351,1.89369,2640.4,2640.0,2.497]
[1723283031696,1.89369,2640.4,2640.1,2.94256214]
[1723283031697,1.89373,2640.3,2640.1,2.94256214]
[1723283032731,1.89369,2640.4,2640.1,2.5724121]
[1723283032892,1.89373,2640.3,2640.1,2.5724121]
[1723283035999,1.89369,2640.4,2640.1,2.5724121]
[1723283036670,3.78739,2640.4,2640.1,2.5724121]
[1723283037205,1.89373,2640.3,2640.1,2.5724121]
[1723283037707,1.89379,2640.2,2640.1,2.5724121]
[1723283040429,1.89369,2640.4,2640.1,2.5724121]
[1723283040725,3.78741,2640.4,2640.1,2.5724121]
[1723283041222,1.89379,2640.2,2640.1,2.5724121]
[1723283041887,1.89359,2640.5,2640.1,2.5724121]
[1723283042274,1.89355,2640.6,2640.1,2.5724121]
[1723283043181,1.89355,2640.6,2640.2,2.497]
[1723283043606,1.89355,2640.6,2640.3,0.07541255]
[1723283043919,1.89355,2640.6,2640.2,2.497]
[1723283044125,1.89355,2640.6,2640.4,0.0753684]
[1723283044421,1.89355,2640.6,2640.3,0.07541255]
[1723283044584,1.89355,2640.6,2640.5,0.07532425]
[1723283044786,1.89355,2640.6,2640.4,0.0753684]
[1723283045016,1.89355,2640.6,2640.5,0.07532425]
[1723283045384,1.89363,2640.5,2640.2,2.497]
[1723283045820,1.89369,2640.4,2640.2,2.497]
[1723283046587,1.89372,2640.3,2640.0,2.3258]
[1723283049089,3.7875,2640.3,2640.0,2.3258]
[1723283049299,1.89372,2640.3,2640.0,2.3258]
[1723283049718,3.7875,2640.3,2640.0,2.3258]
[1723283050314,1.89372,2640.3,2640.0,2.3258]
[1723283051223,1.89361,2640.5,2640.0,2.3258]
[1723283051424,1.89361,2640.5,2640.0,2.86068]
[1723283051625,1.89361,2640.5,2640.1,2.40130087]
[1723283051990,3.78725,2640.5,2640.1,2.40130087]
[1723283052536,1.89367,2640.4,2640.1,2.40130087]
[1723283052829,1.89361,2640.5,2640.1,2.40130087]
[1723283052991,1.89369,2640.4,2640.1,2.40130087]
[1723283053190,1.89373,2640.3,2640.1,0.07550087]
[1723283053415,1.89366,2640.4,2640.1,0.07550087]
[1723283053617,1.89366,2640.4,2639.9,3.4548]
[1723283053831,1.89366,2640.4,2640.2,0.07545671]
[1723283054131,1.89366,2640.4,2639.9,3.4548]
[1723283054339,1.89372,2640.3,2639.9,3.4548]
[1723283054510,1.8938,2640.2,2639.9,2.3258]
[1723283055392,2.328451,2640.5,2639.9,2.3258]
[1723283055624,1.89375,2640.3,2639.9,2.3258]
[1723283055787,2.328451,2640.5,2639.9,2.3258]
[1723283055987,1.89369,2640.4,2639.9,2.3258]
[1723283056829,1.129,2640.9,2640.0,3.4548]
[1723283057037,1.89362,2640.5,2640.0,3.4548]
[1723283058131,1.89353,2640.6,2640.0,5.34871]
[1723283058635,1.89343,2640.7,2640.0,5.34871]
[1723283059410,1.89358,2640.5,2640.0,5.34871]
[1723283060296,2.272281,2640.5,2640.0,5.34871]
[1723283062760,2.272281,2640.5,2640.0,3.4548]
[1723283065210,2.272281,2640.5,2640.0,5.34872]
[1723283065603,2.272281,2640.5,2640.0,3.4548]
[1723283066647,2.272281,2640.5,2640.1,0.07544381]
[1723283066799,0.2272281,2640.4,2640.1,0.07544381]
[1723283077448,2.1208781,2640.4,2640.1,0.07544381]
[1723283079008,1.89374,2640.3,2640.1,0.07544381]
[1723283080722,0.2272281,2640.4,2640.1,0.07544381]
[1723283082446,2.1208881,2640.4,2640.1,0.07544381]
[1723283082855,0.40144681,2640.3,2640.1,0.07544381]
[1723283083026,2.29516681,2640.3,2640.1,0.07544381]
[1723283087852,4.18894681,2640.3,2640.1,0.07544381]
[1723283088081,1.89379,2640.2,2640.1,0.07544381]
[1723283088555,1.89379,2640.2,2639.8,2.4426]
[1723283088762,1.89379,2640.2,2640.1,0.07545647]
[1723283088921,2.37203049,2640.2,2639.8,2.4426]
[1723283089260,1.89391,2640.1,2639.9,0.0755448]
[1723283089430,4.38351,2640.1,2639.9,0.0755448]
[1723283089765,2.4871481,2640.4,2640.0,2.51810063]
[1723283090554,1.89379,2640.3,2640.0,2.51810063]
[1723283090750,1.89379,2640.2,2640.0,2.51810063]
[1723283090917,0.5934481,2640.4,2640.0,2.51810063]
[1723283092165,1.8938,2640.2,2640.0,2.51810063]
[1723283092328,1.8938,2640.2,2640.0,0.07550063]
[1723283092329,3.9771,2640.1,2640.0,0.07550063]
[1723283092665,1.89408,2639.9,2639.5,9.9326]
[1723283092954,1.8938,2640.2,2639.9,2.4426]
[1723283093429,2.58085981,2640.2,2640.0,0.07312219]
[1723283094139,0.68705981,2640.2,2640.0,0.07312219]
[1723283094349,1.89375,2640.3,2640.0,0.07312219]
[1723283094529,0.5934481,2640.4,2640.0,0.07312219]
[1723283094859,2.4896,2640.2,2640.0,0.07312219]
[1723283095031,1.89386,2640.1,2640.0,0.07312219]
[1723283095223,3.78757,2640.3,2639.7,1.129]
[1723283095427,1.89378,2640.3,2640.0,0.07077703]
[1723283095618,1.89378,2640.3,2639.9,1.129]
[1723283095818,1.89378,2640.3,2640.1,0.07073287]
[1723283096018,2.33186281,2640.3,2640.0,0.07085948]
[1723283096251,2.33186281,2640.3,2640.2,0.07077116]
[1723283096454,2.33186281,2640.3,2640.1,0.07081531]
[1723283096664,1.89378,2640.3,2640.2,0.07077116]
[1723283096955,1.89378,2640.3,2639.8,2.4426]
[1723283097138,1.89378,2640.3,2640.2,0.07077116]
[1723283097448,0.43808281,2640.3,2639.8,2.4426]
[1723283097750,0.5934481,2640.4,2639.8,2.4426]
[1723283098053,0.5934481,2640.4,2639.9,0.07090364]
[1723283098623,2.4870981,2640.4,2639.9,0.07090364]
[1723283099652,1.89374,2640.3,2639.9,0.07090364]
[1723283100030,2.4871081,2640.4,2639.9,0.07090364]
[1723283100227,3.17413891,2640.4,2639.9,0.07090364]
[1723283101226,1.89376,2640.3,2639.9,0.07090364]
[1723283102113,1.89384,2640.2,2639.9,0.07090364]
[1723283103152,3.78769,2640.2,2639.9,0.07090364]
[1723283103452,1.89384,2640.2,2639.9,0.07090364]
[1723283103855,0.5934481,2640.4,2639.9,1.96489364]
[1723283104075,0.5934481,2640.4,2640.0,2.4277]
[1723283104255,2.4871081,2640.4,2640.0,2.4277]
[1723283104554,2.4871081,2640.4,2640.1,0.06850914]
[1723283105120,0.5934481,2640.4,2640.1,0.06850914]
[1723283105529,2.4870981,2640.4,2640.1,0.06850914]
[1723283106557,0.5934481,2640.4,2640.3,2.4277]
[1723283106864,6.24945,2641.4,2640.7,4.32112]
[1723283107032,6.24945,2641.4,2640.8,1.129]
[1723283107033,4.35646,2641.4,2640.8,1.129]
[1723283107227,2.4635,2641.4,2640.9,1.89323]
[1723283107456,0.435637,2641.3,2640.9,1.89323]
[1723283107632,1.89287,2641.5,2641.0,0.0678328]
[1723283108671,1.8925,2642.0,2641.0,0.0678328]
[1723283108672,3.78538,2641.8,2641.2,3.02207]
[1723283108871,2.517558,2641.8,2641.2,1.129]
[1723283109172,1.89279,2641.6,2641.3,0.06726936]
[1723283109695,1.89286,2641.5,2641.2,1.129]
[1723283109900,1.89286,2641.5,2641.3,0.06726936]
[1723283110086,2.3338248,2641.6,2641.2,1.129]
[1723283110264,2.3338248,2641.6,2641.3,0.06726936]
[1723283110465,0.4410348,2641.6,2641.2,1.129]
[1723283110692,1.89272,2641.7,2641.2,1.129]
[1723283110978,1.89279,2641.6,2641.3,0.06726936]
[1723283111506,1.89279,2641.6,2641.4,0.06722524]
[1723283111675,3.78536,2641.8,2641.2,1.129]
[1723283111878,1.89267,2641.8,2641.3,0.06726936]
[1723283112093,1.89239,2642.2,2641.6,1.129]
[1723283112403,1.89239,2642.2,2641.8,3.5567]
[1723283112589,1.89216,2642.5,2642.0,1.129]
[1723283112962,1.89216,2642.5,2642.1,0.06653]
[1723283113363,1.89221,2642.4,2642.1,0.06653]
[1723283113672,1.89216,2642.5,2642.1,0.06653]
[1723283114772,6.24758,2642.7,2642.1,0.06653]
[1723283115098,6.24758,2642.7,2642.2,3.5567]
[1723283115099,1.892,2642.7,2642.2,3.5567]
[1723283115440,1.89189,2642.9,2642.4,1.129]
[1723283115800,1.89189,2642.9,2642.5,0.06368677]
[1723283117242,3.78322,2643.3,2642.8,1.129]
[1723283117446,1.89148,2643.5,2643.0,1.129]
[1723283117601,2.326998,2643.4,2643.0,1.129]
[1723283117805,2.326998,2643.4,2643.1,0.06159805]
[1723283118114,1.89181,2643.0,2642.6,2.4277]
[1723283118325,2.270155,2643.0,2642.7,1.19077432]
[1723283118517,0.435498,2643.4,2642.9,1.129]
[1723283118518,2.327028,2643.4,2642.9,1.129]
[1723283118839,2.327028,2643.4,2643.0,0.06164211]
[1723283119742,4.218598,2643.4,2643.0,0.06164211]
[1723283119917,0.4218598,2643.3,2643.0,0.06164211]
[1723283120238,2.3134298,2643.3,2643.0,0.06164211]
[1723283120465,0.4218598,2643.3,2643.0,0.06164211]
[1723283120938,0.435498,2643.4,2643.0,0.06164211]
[1723283121126,1.89137,2643.6,2643.1,2.4277]
[1723283121325,1.89137,2643.6,2643.2,0.06155399]
[1723283121529,3.78248,2643.8,2643.2,0.06155399]
[1723283121733,0.624598,2643.7,2643.2,0.06155399]
[1723283122245,3.78314,2643.3,2643.2,0.06155399]
[1723283122550,1.89189,2642.9,2642.5,3.5567]
[1723283122702,1.89189,2642.9,2642.6,0.05981893]
[1723283122902,1.89195,2642.8,2642.3,3.5567]
[1723283123103,1.89195,2642.8,2642.4,0.05990709]
[1723283124133,2.193979,2642.9,2642.4,0.05990709]
[1723283124410,1.89193,2642.8,2642.4,0.05990709]
[1723283124735,0.4085909,2642.7,2642.4,1.18890709]
[1723283124933,2.193979,2642.9,2642.4,1.18890709]
[1723283125256,1.89173,2643.1,2642.5,1.89209]
[1723283125404,1.89165,2643.2,2642.6,5.31373]
[1723283125720,1.89173,2643.1,2642.6,3.48151893]
[1723283126115,2.25295007,2643.3,2642.6,5.37358893]
[1723283126548,1.89164,2643.2,2642.6,5.37358893]
[1723283127065,1.89171,2643.1,2642.6,5.37358893]
[1723283127233,1.89171,2643.1,2642.6,3.48151893]
[1723283127633,1.89171,2643.1,2642.6,2.35251893]
[1723283128334,1.892,2642.7,2642.6,0.05981893]
[1723283128533,1.8919,2642.9,2642.4,2.2927]
[1723283128864,1.8919,2642.9,2642.5,0.05956558]
[1723283129374,1.89179,2643.0,2642.5,0.05956558]
[1723283130130,0.433622,2643.1,2642.5,0.05956558]
[1723283130357,1.89207,2642.6,2642.1,9.7827]
[1723283130575,1.89207,2642.6,2642.2,0.05969783]
[1723283130872,1.89216,2642.5,2642.2,0.05969783]
[1723283132034,1.89223,2642.4,2642.2,0.05969783]
[1723283132774,1.89211,2642.6,2642.2,0.05969783]
[1723283133078,1.89215,2642.5,2642.2,0.05969783]
[1723283133457,1.89223,2642.4,2642.2,0.05969783]
[1723283134186,1.89229,2642.3,2642.2,0.05969783]
[1723283136277,1.89229,2642.3,2641.8,2.2927]
[1723283136882,1.89236,2642.2,2641.9,0.0601719]
[1723283137293,3.785,2642.0,2641.9,0.0601719]
[1723283137472,6.2296,2642.0,2641.9,0.0601719]
[1723283137676,1.89282,2641.6,2641.3,2.2927]
[1723283138182,1.89282,2641.6,2641.4,0.06081018]
[1723283138368,1.89286,2641.5,2641.4,0.06081018]
[1723283138574,1.89295,2641.4,2641.1,2.2927]
[1723283138890,1.89295,2641.4,2640.8,21.69331]
[1723283138891,1.893,2641.3,2641.2,0.06089842]
[1723283139242,1.893,2641.3,2640.9,2.2927]
[1723283139449,1.893,2641.3,2641.2,0.06089842]
[1723283139680,1.89321,2641.1,2640.5,9.38356]
[1723283139880,2.4446,2641.3,2641.2,0.06089842]
[1723283140082,1.89321,2641.1,2640.4,4.1863]
[1723283140287,1.89341,2640.8,2640.4,2.900699]
[1723283140512,1.89341,2640.8,2640.5,0.06120736]
[1723283142284,1.89325,2641.0,2640.3,1.89371]
[1723283142459,1.89325,2641.0,2640.6,0.05917013]
[1723283142785,1.89334,2640.9,2640.7,0.05912599]
[1723283142984,1.89348,2640.7,2640.1,7.49]
[1723283143187,1.89358,2640.5,2640.2,0.05934673]
[1723283143404,1.89365,2640.4,2640.2,0.05934673]
[1723283143859,1.89365,2640.4,2640.0,2.2927]
[1723283144056,1.89365,2640.4,2640.3,0.05930257]
[1723283144262,1.89365,2640.4,2639.7,9.8363]
[1723283144590,1.8938,2640.2,2639.7,9.8363]
[1723283144950,1.8938,2640.2,2639.7,11.198775]
[1723283145248,1.89359,2640.5,2639.7,9.8363]
[1723283145457,1.89359,2640.5,2639.7,11.7304]
[1723283145724,1.89377,2640.3,2639.7,9.8363]
[1723283145910,1.89384,2640.2,2639.7,9.8363]
[1723283147047,1.89387,2640.1,2639.7,7.49]
[1723283147823,1.89394,2640.0,2639.7,7.49]
[1723283148446,1.89394,2640.0,2639.4,4.24066]
[1723283148748,1.89403,2639.9,2639.2,12.38446]
[1723283148947,1.89403,2639.9,2639.2,14.046989]
[1723283149253,0.378781,2640.0,2639.3,1.89438]
[1723283149459,1.89375,2640.3,2639.6,1.89418]
[1723283149623,3.78753,2640.3,2639.7,2.3463]
[1723283149825,2.875406,2640.6,2639.7,2.3463]
[1723283149826,1.8936,2640.5,2639.8,1.89402]
[1723283150030,2.4811406,2640.5,2639.5,1.89426]
[1723283150252,1.89377,2640.3,2639.6,1.89421]
[1723283150453,2.4811406,2640.5,2639.7,1.89414]
[1723283150657,2.4811406,2640.5,2639.8,4.24033]
[1723283151357,1.89373,2640.3,2639.8,2.3463]
[1723283151534,1.89373,2640.3,2639.6,4.24051]
[1723283151727,1.89391,2640.1,2639.4,1.89435]
[1723283152156,2.14185706,2640.3,2639.6,1.89422]
[1723283152920,0.24812706,2640.3,2639.4,1.89435]
[1723283153132,1.89392,2640.1,2639.4,1.89435]
[1723283153533,3.78784,2640.1,2639.4,1.89435]
[1723283153748,1.89395,2640.0,2639.4,1.89435]
[1723283154559,1.89392,2640.1,2639.4,1.8943]
[1723283154757,1.89392,2640.1,2639.4,3.53944638]
[1723283154938,1.89392,2640.1,2639.5,1.89425]
[1723283155139,1.89394,2640.0,2639.4,1.64514638]
[1723283155657,4.7876206,2640.5,2639.6,1.89419]
[1723283155865,4.7876206,2640.5,2639.4,1.64514638]
[1723283155866,5.3065,2640.7,2640.0,1.8939]
[1723283156025,5.3065,2640.7,2639.7,2.535719]
[1723283156026,1.89362,2640.5,2639.8,1.89403]
[1723283156755,4.89355,2640.6,2639.9,1.95428384]
[1723283157258,1.8936,2640.5,2639.9,0.06028384]
[1723283158147,1.89372,2640.3,2639.9,0.06028384]
[1723283158349,1.89393,2640.0,2639.9,0.06028384]
[1723283158554,1.89393,2640.0,2639.3,4.24073]
[1723283158750,1.89402,2639.9,2639.4,0.05849237]
[1723283159763,6.09435,2640.1,2639.4,0.05849237]
[1723283159948,4.20042,2640.1,2639.4,0.05849237]
[1723283160270,4.20042,2640.1,2639.4,0.59897161]
[1723283160432,2.3065,2640.6,2639.5,2.3463]
[1723283160624,1.89332,2640.9,2639.8,2.3463]
[1723283160871,4.19967,2641.1,2639.8,2.3463]
[1723283160872,1.89322,2641.0,2640.3,6.13365]
[1723283161171,1.89322,2641.0,2639.8,4.89408]
[1723283161172,4.2001,2640.5,2640.4,0.05798095]
[1723283161371,1.8937,2640.4,2639.8,4.24038]
[1723283161526,1.8937,2640.4,2639.9,0.05632038]
[1723283161728,4.62011,2640.5,2639.9,0.05632038]
[1723283161959,2.31361,2640.5,2639.9,1.95032038]
[1723283162364,3.78696,2640.7,2640.0,1.89392]
[1723283162549,1.89347,2640.7,2640.1,0.05608639]
[1723283162734,1.89347,2640.7,2640.1,1.94994639]
[1723283163057,1.89332,2640.9,2640.3,3.78739]
[1723283163262,1.89332,2640.9,2640.3,1.89367]
[1723283163467,1.89332,2640.9,2640.4,0.05595392]
[1723283163654,1.89332,2640.9,2640.4,1.94959392]
[1723283163851,2.50262,2640.9,2640.4,0.05595392]
[1723283164055,1.89344,2640.7,2640.4,0.05595392]
[1723283164252,3.78694,2640.7,2640.2,2.3463]
[1723283164470,1.89344,2640.7,2640.5,0.05597943]
[1723283164678,1.89344,2640.7,2640.2,2.3463]
[1723283164877,1.89344,2640.7,2640.6,0.05593529]
[1723283165080,1.89344,2640.7,2640.2,2.3463]
[1723283165282,1.89344,2640.7,2640.6,0.05593529]
[1723283165491,1.89344,2640.7,2640.2,2.3463]
[1723283165683,8.504843,2640.7,2640.6,0.05593529]
[1723283165866,1.89392,2640.1,2639.7,2.3195]
[1723283166273,1.89392,2640.1,2639.8,0.0541076]
[1723283166696,1.89392,2640.1,2639.7,2.3195]
[1723283166993,1.8938,2640.2,2639.8,0.0541076]
[1723283167166,1.8938,2640.2,2639.7,2.3195]
[1723283167371,1.89374,2640.3,2639.8,0.0541076]
[1723283167603,1.89374,2640.3,2639.7,2.3195]
[1723283167763,1.89381,2640.2,2639.9,0.05406344]
[1723283167958,1.89381,2640.2,2639.7,2.3195]
[1723283168167,1.89365,2640.4,2639.8,1.9481776]
[1723283168371,1.89353,2640.6,2639.8,1.9481776]
[1723283168692,1.89353,2640.6,2639.8,2.37490536]
[1723283169589,2.3849,2640.5,2639.9,1.89399]
[1723283169792,2.3849,2640.5,2640.0,0.05219283]
[1723283169793,1.89384,2640.2,2640.0,0.05219283]
[1723283169980,1.89384,2640.2,2639.5,4.21375]
[1723283170182,1.89384,2640.2,2639.6,0.77374451]
[1723283170618,1.89368,2640.4,2639.6,0.77374451]
[1723283170959,1.89379,2640.2,2639.6,0.77374451]
[1723283171392,1.89395,2640.0,2639.6,0.77374451]
[1723283171759,1.89395,2640.0,2639.6,0.05236951]
[1723283172509,1.89382,2640.2,2639.6,0.05236951]
[1723283172716,1.89387,2640.1,2639.6,0.05236951]
[1723283173112,1.89405,2639.9,2639.6,0.05236951]
[1723283173415,1.89412,2639.8,2639.6,0.05236951]
[1723283173598,1.89412,2639.8,2639.2,7.49]
[1723283173801,1.89416,2639.7,2639.2,2.701405]
[1723283174100,1.89412,2639.8,2639.2,1.89446]
[1723283174477,1.89416,2639.7,2639.1,7.21402]
[1723283174707,1.89416,2639.7,2639.1,9.10856]
[1723283174879,1.89416,2639.7,2639.2,0.910856]
[1723283176820,1.89404,2639.9,2639.2,2.805346]
[1723283177022,1.89404,2639.9,2639.3,1.89443]
[1723283177223,1.89404,2639.9,2639.4,2.3195]
[1723283178123,1.89404,2639.9,2639.4,2.8319786]
[1723283179184,1.89388,2640.1,2639.5,1.89424]
[1723283179421,2.3849,2641.2,2640.2,2.3195]
[1723283179621,1.89362,2640.5,2639.9,2.3195]
[1723283179942,1.89324,2641.0,2639.8,7.49]
[1723283179943,2.3849,2640.7,2639.8,7.49]
[1723283180125,1.89401,2639.9,2639.8,7.49]
[1723283180432,1.89401,2639.9,2639.3,2.3195]
[1723283180433,1.89413,2639.8,2639.3,2.3195]
[1723283181139,1.89389,2640.1,2639.3,4.21394]
[1723283181357,1.89375,2640.3,2639.7,1.89415]
[1723283181634,1.8938,2640.2,2639.5,1.89424]
[1723283181838,1.89391,2640.1,2639.5,2.2432294]
[1723283182150,1.89391,2640.1,2639.6,0.57331234]
[1723283182439,1.89405,2639.9,2639.4,2.3195]
[1723283184113,3.78811,2639.9,2639.4,2.3195]
[1723283184336,1.89405,2639.9,2639.4,2.3195]
[1723283185039,1.89389,2640.1,2639.5,1.89427]
[1723283185242,1.89389,2640.1,2639.5,2.315633]
[1723283186099,1.89375,2640.3,2639.6,1.89421]
[1723283186329,1.89375,2640.3,2639.7,2.4113]
[1723283186540,1.89375,2640.3,2639.7,3.12597135]
[1723283186720,1.89389,2640.1,2639.7,2.46385705]
[1723283187127,1.89407,2639.9,2639.7,0.05255705]
[1723283187523,1.89389,2640.1,2639.3,4.30568]
[1723283187736,1.89389,2640.1,2639.8,0.0524496]
[1723283187952,1.89389,2640.1,2639.5,1.89425]
[1723283188161,1.89389,2640.1,2639.9,0.05240543]
[1723283188459,1.89389,2640.1,2639.7,2.4113]
[1723283188654,1.89389,2640.1,2640.0,0.05229166]
[1723283188845,1.89389,2640.1,2639.7,2.4113]
[1723283189052,1.89389,2640.1,2640.0,0.0521588]
[1723283189357,1.89398,2640.0,2639.4,4.30566]
[1723283189574,1.89398,2640.0,2639.4,5.945172]
[1723283190871,1.89412,2639.8,2639.4,2.4113]
[1723283191368,1.89412,2639.8,2639.2,9.38446]
[1723283191569,1.89412,2639.8,2639.2,1.89446]
[1723283191570,1.89417,2639.7,2639.2,1.89446]
[1723283191863,1.89417,2639.7,2639.2,2.814498]
[1723283192071,1.89412,2639.8,2639.2,2.814498]
[1723283192269,1.89418,2639.7,2639.2,2.814498]
[1723283192771,4.24156,2640.0,2639.2,2.814498]
[1723283193068,4.665716,2640.0,2639.2,2.814498]
[1723283193368,1.89409,2639.8,2639.2,2.814498]
[1723283193578,1.89396,2640.0,2639.3,2.4113]
[1723283194459,1.89409,2639.8,2639.3,2.4113]
[1723283194662,1.8942,2639.7,2639.3,3.2338788]
[1723283194851,1.89423,2639.6,2639.1,2.4113]
[1723283195479,1.89409,2639.8,2639.1,2.4113]
[1723283195975,1.89409,2639.8,2639.1,2.43853529]
[1723283196181,1.89381,2640.2,2639.2,2.4113]
[1723283196333,1.89381,2640.2,2639.6,2.4113]
[1723283196537,1.89381,2640.2,2639.6,4.30546]
[1723283200051,1.89372,2640.3,2639.7,1.8941]
[1723283200261,1.89372,2640.3,2639.7,2.514071]
[1723283201038,1.89372,2640.3,2639.3,2.54980966]
[1723283201039,1.89391,2640.1,2639.4,1.8943]
[1723283201295,1.89391,2640.1,2639.5,1.89427]
[1723283201440,1.89391,2640.1,2639.5,1.94661167]
[1723283202069,1.89395,2640.0,2639.5,1.94661167]
[1723283203116,1.89395,2640.0,2639.5,0.05234167]
[1723283203311,1.89405,2639.9,2639.5,0.05234167]
[1723283203477,1.89405,2639.9,2639.3,6.20008]
[1723283203797,1.89405,2639.9,2639.3,8.56050353]
[1723283203978,1.89405,2639.9,2639.4,0.05246179]
[1723283204380,1.89405,2639.9,2639.4,1.94682179]
[1723283204694,1.89405,2639.9,2639.4,0.05246179]
[1723283204894,4.16795,2639.9,2639.4,0.05246179]
[1723283206879,1.89429,2639.5,2639.4,0.05246179]
[1723283207075,1.89426,2639.6,2639.4,0.05246179]
[1723283207283,1.89426,2639.6,2639.2,7.49]
[1723283207469,1.89429,2639.5,2639.2,7.49]
[1723283207668,1.89429,2639.5,2639.3,0.05259456]
[1723283207913,1.89429,2639.5,2639.2,7.49]
[1723283208218,1.89426,2639.6,2639.4,0.05255038]
[1723283208417,1.89408,2639.8,2639.3,0.05259456]
[1723283208771,3.78821,2639.8,2639.2,9.38451]
[1723283208968,3.78821,2639.8,2639.3,0.05259456]
[1723283209169,1.89408,2639.8,2639.2,9.38451]
[1723283209480,1.89408,2639.8,2639.3,0.05259456]
[1723283210028,1.89415,2639.7,2639.4,0.05255038]
[1723283210182,1.89415,2639.7,2639.2,7.49]
[1723283210525,3.78822,2639.8,2639.5,0.0525062]
[1723283210697,3.78822,2639.8,2639.2,9.3845]
[1723283211025,1.89416,2639.7,2639.2,9.3845]
[1723283211227,1.89416,2639.7,2639.3,0.05259456]
[1723283211517,1.89416,2639.7,2639.2,7.49]
[1723283211720,1.89401,2639.9,2639.4,2.3069]
[1723283212081,1.89401,2639.9,2639.5,0.0525062]
[1723283215587,1.89395,2640.0,2639.5,0.47788582]
[1723283216588,4.23352,2640.2,2639.5,0.47788582]
[1723283216589,4.23352,2640.2,2639.5,2.37214582]
[1723283216835,4.23352,2640.2,2639.6,1.89421]
[1723283217125,6.12738,2640.2,2639.6,1.94698843]
[1723283217427,4.656872,2640.2,2639.6,0.05277843]
[1723283217628,1.89394,2640.0,2639.4,4.20122]
[1723283218325,1.89394,2640.0,2639.5,0.0528226]
[1723283218490,1.89394,2640.0,2639.5,0.66766486]
[1723283219614,1.89394,2640.0,2639.5,2.56195486]
[1723283219788,3.78766,2640.2,2639.6,1.89422]
[1723283219988,3.78766,2640.2,2639.6,1.94699843]
[1723283220495,1.89388,2640.1,2639.6,1.94699843]
[1723283222287,1.89394,2640.0,2639.6,0.05277843]
[1723283222492,1.89394,2640.0,2639.4,4.20122]
[1723283222726,1.89394,2640.0,2639.7,0.05273425]
[1723283222933,1.89394,2640.0,2639.4,4.20122]
[1723283223128,3.78768,2640.2,2639.8,0.05269008]
[1723283223429,1.89387,2640.1,2639.9,0.05264591]
[1723283223624,1.89387,2640.1,2639.5,1.89424]
[1723283223839,1.89387,2640.1,2640.0,0.05231063]
[1723283223995,1.89387,2640.1,2639.5,1.89424]
[1723283224195,1.89387,2640.1,2640.0,0.05231063]
[1723283224531,1.89387,2640.1,2639.5,1.89424]
[1723283224734,1.89387,2640.1,2640.0,0.05227266]
[1723283224895,2.272639,2640.1,2639.5,1.89424]
[1723283225096,1.89387,2640.1,2640.0,0.05227266]
[1723283225629,1.89387,2640.1,2639.5,1.89424]
[1723283225991,1.89387,2640.1,2640.0,0.05227266]
[1723283226231,1.89387,2640.1,2640.0,0.0519457]
[1723283226532,1.89387,2640.1,2639.5,1.89424]
[1723283226708,1.89387,2640.1,2640.0,0.0519457]
[1723283226917,1.89387,2640.1,2639.5,1.89424]
[1723283227105,1.89387,2640.1,2640.0,0.0519457]
[1723283227293,1.89387,2640.1,2639.5,1.89424]
[1723283227501,1.89387,2640.1,2640.0,0.0519457]
[1723283227726,2.272639,2640.1,2639.5,1.89424]
[1723283227929,1.89387,2640.1,2640.0,0.0519457]
[1723283228127,1.89387,2640.1,2639.5,1.89424]
[1723283228299,1.89387,2640.1,2640.0,0.0519457]
[1723283228509,2.272639,2640.1,2639.5,1.89424]
[1723283228704,1.89387,2640.1,2640.0,0.0519457]
[1723283229032,1.89387,2640.1,2639.5,1.89424]
[1723283229507,1.89387,2640.1,2639.6,0.05212238]
[1723283229708,1.89382,2640.2,2639.6,0.05212238]
[1723283229709,1.89395,2640.0,2639.6,0.05212238]
[1723283235448,1.89395,2640.0,2639.7,0.0520782]
[1723283235655,1.89395,2640.0,2639.4,4.20125]
[1723283235861,2.3547,2640.0,2639.5,0.05216656]
[1723283236039,0.23547,2639.9,2639.5,0.05216656]
[1723283237047,1.8942,2639.7,2639.5,0.05216656]
[1723283237644,1.89422,2639.6,2639.5,0.05216656]
[1723283237953,1.8942,2639.7,2639.1,4.31783]
[1723283238153,1.8942,2639.7,2639.5,0.05221086]
[1723283238317,1.8942,2639.7,2639.1,4.31783]
[1723283238522,1.8942,2639.7,2639.6,0.05216668]
[1723283238740,1.8942,2639.7,2639.1,4.31783]
[1723283238958,1.8942,2639.7,2639.6,0.05216668]
[1723283239143,1.8942,2639.7,2639.2,0.431783]
[1723283239144,1.8942,2639.7,2639.1,4.31783]
[1723283239339,1.8942,2639.7,2639.6,0.05216668]
[1723283239563,1.8942,2639.7,2639.2,1.89451]
[1723283239762,1.8942,2639.7,2639.6,0.05238185]
[1723283239933,1.89404,2639.9,2639.4,2.4233]
[1723283240128,1.89404,2639.9,2639.6,0.05238185]
[1723283240459,3.7881,2639.9,2639.7,0.05233767]
[1723283240665,3.7881,2639.9,2639.4,2.4233]
[1723283240961,3.7881,2639.9,2639.5,0.05242603]
[1723283241167,1.89404,2639.9,2639.5,0.05242603]
[1723283241865,1.89408,2639.8,2639.5,0.05242603]
[1723283242171,1.89404,2639.9,2639.5,0.05242603]
[1723283242172,1.89417,2639.7,2639.5,0.05242603]
[1723283242965,4.212974,2639.9,2639.5,0.05242603]
[1723283243171,3.7881,2639.9,2639.5,0.05242603]
[1723283243464,1.89409,2639.8,2639.5,0.05242603]
[1723283247165,3.7881,2639.9,2639.5,0.05242603]
[1723283247372,1.89404,2639.9,2639.5,0.05242603]
[1723283247674,2.318914,2639.9,2639.5,0.05242603]